Cogmind - Beta 16 @@@ ROGUE MODE // 2025.11.15 @ 17:35:47 Player: Patryk Z Result: Core destroyed Performance ------------- Evolutions (0) 0 Regions Visited (3) 600 Robots Destroyed (35) 175 Value Destroyed (872) 872 Prototype IDs (25) 500 Alien Tech Used (0) 0 Bonus (341) 341 TOTAL SCORE: 2488 Bonus ------- Follower Combat Kills 60 Aligned with FarCom 300 Friendly Fire -19 Cogmind --------- Core Integrity 0/250 Matter 66/300 Energy 63/100 System Corruption 2% Temperature Critical (604) Movement Core (50) Location -10/Exiles Parts ------- > --- POWER (1) -------- (None) > --- PROPULSION (2) --- (None) > --- UTILITY (2) ------ (None) > --- WEAPON (2) ------- (None) > --- INVENTORY (5) ---- Scrap Suit Light Armor Plating Firepult Peak State ------------ > --- POWER ------------ Light Nuclear Core > --- PROPULSION ------- (None) > --- UTILITY ---------- Large Storage Unit Light Armor Plating > --- WEAPON ----------- Firepult > --- INVENTORY -------- Scrap Suit Improved Heat Sink Small Matter Pod Structural Scanner Light Armor Plating Light Armor Plating Beam Cannon Mining Laser [Rating: 26] Favorites ----------- Power Ion Engine Engine Ion Engine Power Core Light Nuclear Core Propulsion Aluminum Leg Leg Aluminum Leg Wheel Compact Wheel Utility Structural Scanner Device Structural Scanner Storage Medium Storage Unit Processor Signal Interpreter Protection Light Armor Plating Weapon Light Cannon Energy Cannon Firepult Ballistic Gun Assault Rifle Ballistic Cannon Light Cannon Special Weapon Mining Laser Build | -11 -10 -10 -10 ------- Run | Yrd Mat Min Exi Slots Evolved . | . . . . Power . | . . . . Propulsion . | . . . . Utility . | . . . . Weapon . | . . . . Parts Attached 23 | 6 7 7 3 Power 3 | 1 . 1 1 Engine 2 | 1 . 1 . Core 1 | . . . 1 Reactor . | . . . . Propulsion 6 | 2 . 4 . Treads . | . . . . Leg 4 | 2 . 2 . Wheel 2 | . . 2 . Hover . | . . . . Flight . | . . . . Utility 7 | 1 4 2 . Device 1 | . 1 . . Storage 3 | 1 1 1 . Processor 1 | . . 1 . Hackware . | . . . . Protection 2 | . 2 . . Artifact . | . . . . Weapon 7 | 2 3 . 2 Energy Gun . | . . . . Energy Cannon 2 | . . . 2 Ballistic Gun 2 | 2 . . . Ballistic Cannon 2 | . 2 . . Launcher . | . . . . Special Weapon 1 | . 1 . . Impact Weapon . | . . . . Slashing Weapon . | . . . . Piercing Weapon . | . . . . Special Melee Weapon . | . . . . Unidentified Prototypes . | . . . . Parts Lost 6 | . . . 6 Power . | . . . . Propulsion 2 | . . . 2 Utility 1 | . . . 1 Weapon 3 | . . . 3 Highest Loss Streak 3 | . . . 3 To Critical Strikes . | . . . . Average Backups 9 | 4 8 9 10 Power . | . 1 . . Propulsion 1 | 3 2 1 . Utility 3 | . 2 4 6 Weapon 2 | . 1 3 3 Tool/Special . | . . . . Unused Backups 11 | . 6 . 5 Power 1 | . 1 . . Propulsion 3 | . 3 . . Utility 4 | . . . 4 Weapon 3 | . 2 . 1 Tool/Special . | . . . . Average Slot Usage (%) 97 | . 94 100 94 Engine 13 | . 14 14 12 Leg 19 | . 28 21 . Wheel 7 | . . 6 23 Device 9 | . . 13 12 Storage 14 | . 14 14 14 Protection 2 | . 8 . . Ballistic Gun 4 | . 12 . 1 Ballistic Cannon 23 | . 14 28 24 Peak Build Rating 26 | 6 8 9 26 Average Rating 7 | 5 7 7 10 On Entrance 5 | . 6 8 9 Avg Prop Armor Cover (%) . | . . . . Naked Turns 1 | . . . 1 Heaviest Build 32 | 14 24 32 32 Greatest Support 32 | 20 20 32 32 Greatest Overweight (x) 2 | 2 1 1 1 Average Overweight (x) . | . . . . Largest Inventory Capacity 15 | 8 10 15 15 Average Capacity 11 | 7 9 12 14 Most Carried 13 | 6 10 11 13 Average Carried 9 | 5 8 9 11 Final Capacity 15 | 8 10 15 5 Final Carried 11 | 6 10 11 5 Class Distribution -------------------- 98% | Mutant Dominant Class ---------------- Mutant | -10/Materials Mutant | -10/Mines Mutant | -10/Exiles Resources | -11 -10 -10 -10 ----------- Run | Yrd Mat Min Exi Matter Collected 866 | 305 293 268 . Remotely . | . . . . Salvage Created 1325 | 148 274 305 598 Parts 66 | 8 15 20 23 Haulers Intercepted 2 | . 2 . . Recyclers Shooed 2 | 1 . 1 . Parts Field Recycled . | . . . . Retrieved Matter . | . . . . Parts Self-Destructed . | . . . . Prevented . | . . . . Parts Restored . | . . . . Kills | -11 -10 -10 -10 ------- Run | Yrd Mat Min Exi Combat Hostiles Destroyed 21 | . 3 6 12 Guns 2 | . 1 . 1 Cannons 12 | . 2 6 4 AOE 4 | . . . 4 Classes Destroyed 12 | 3 4 1 4 Worker 4 | 2 1 1 . Tunneler 3 | 1 . 2 . Hauler 2 | . 2 . . Recycler 3 | 1 . 2 . Operator 1 | . 1 . . Watcher 1 | . 1 . . Swarmer 3 | . . 3 . Grunt 11 | . 3 3 5 Brawler 1 | . . . 1 Duelist 1 | . . . 1 Hunter 4 | . . . 4 Programmer 1 | . . . 1 Best Kill Streak 10 | 4 3 4 10 Combat Bots Only 10 | . 2 3 10 Max Kills in Single Turn 3 | 1 1 1 3 Gunslinging . | . . . . Exploded 2 | . . . 2 Melee . | . . . . Uniques/NPCs Destroyed . | . . . . Combat | -11 -10 -10 -10 -------- Run | Yrd Mat Min Exi Hostile Shots Fired 131 | . 27 19 85 Missed 45 | . 11 8 26 Hits 86 | . 16 11 59 Projectile 86 | . 16 11 59 Critical Strikes 1 | . . . 1 Damage Taken 1163 | . 182 94 887 Core 271 | . 42 10 219 Absorbed by Shields . | . . . . Core Remaining (%) 100 | 100 . . . Volleys Fired 90 | 11 24 21 34 Largest 2 | 2 2 2 2 Hottest 250 | 40 100 60 250 Shots Fired 169 | 22 46 42 59 Gun 70 | 22 30 . 18 Cannon 97 | . 14 42 41 Launcher . | . . . . Special 2 | . 2 . . Kinetic 158 | 22 44 42 50 Thermal 11 | . 2 . 9 Explosive . | . . . . Electromagnetic . | . . . . Robot Hit Streak 15 | 15 8 7 10 Robot Miss Streak 3 | 2 2 2 3 Penetration Max . | . . . . Secondary Targets . | . . . . Shots Hit Robots 104 | 16 27 25 36 Core Hits 53 | 5 11 12 25 Critical Kills 1 | . . . 1 Critical Parts Destroyed . | . . . . Critical Strikes 3 | . . . 3 Destroy 1 | . . . 1 Blast 2 | . . . 2 Melee Attacks . | . . . . Impact . | . . . . Slashing . | . . . . Piercing . | . . . . Sneak Attacks . | . . . . Combat Hostiles . | . . . . Follow-up Attacks . | . . . . Damage Inflicted 2060 | 216 373 422 1049 Guns 558 | 216 184 . 158 Cannons 1067 | . 189 422 456 Explosions 435 | . . . 435 Melee . | . . . . Ramming . | . . . . Kinetic 1518 | 216 373 422 507 Thermal 542 | . . . 542 Explosive . | . . . . Electromagnetic . | . . . . Impact . | . . . . Slashing . | . . . . Piercing . | . . . . Highest Corruption 2 | . . . 2 Average Corruption 1 | . . . 1 Corruption Purged . | . . . . Corruption Blocked . | . . . . Effects 1 | . . . 1 Energy Discharges 1 | . . . 1 Overload Shots . | . . . . Overflow Damage 36 | . . 14 22 Projectiles 36 | . . 14 22 Explosions . | . . . . Melee . | . . . . Knockbacks 10 | . 1 7 2 Impact . | . . . . Kinetic 10 | . 1 7 2 Secondary . | . . . . Self-Inflicted Damage . | . . . . Shots . | . . . . Rammed . | . . . . Targets Rammed . | . . . . Kicked . | . . . . Crushed . | . . . . Highest Temperature 629 | . 36 . 629 Average Temperature 180 | . 15 . 288 Received Heat Transfer 204 | . 96 6 102 Effects 19 | . . . 19 Shutdowns 1 | . . . 1 Energy Bleed 1 | . . . 1 Matter Decay 2 | . . . 2 Short Circuit 2 | . . . 2 Damage (major) 9 | . . . 9 Damage (core) 4 | . . . 4 Siege Activations . | . . . . Martial Activations . | . . . . Shielding Activations . | . . . . Robots Disrupted . | . . . . Combat Hostiles . | . . . . Robots Corrupted . | . . . . Combat Hostiles . | . . . . Parts Fried . | . . . . Impact Corruptions . | . . . . Robots Melted 3 | . . . 3 Combat Hostiles 3 | . . . 3 Parts Melted 14 | . . . 14 Heat Transferred 2997 | . . . 2997 Parts Sabotaged . | . . . . Parts Stolen . | . . . . Parts Stripped . | . . . . Power Chain Reactions . | . . . . Alert | -11 -10 -10 -10 ------- Run | Yrd Mat Min Exi Maximum Alert Level . | . . . . Low Security (%) 100 | 100 100 100 . Level 1 . | . . . . Level 2 . | . . . . Level 3 . | . . . . Level 4 . | . . . . Level 5 . | . . . . High Security . | . . . . Max Security . | . . . . Peak Influence 62 | 20 60 62 . Initial 21 | . . 21 . Average 9 | 2 6 12 . Influence Increases 654 | 20 176 218 240 Destroy 0b10 Robot/C 460 | . 60 160 240 Destroy 0b10 Robot/NC 70 | 20 25 25 . Destroy Leader 56 | . 26 30 . Allied During Kill 3 | . . 3 . Successful Hack 2 | . 2 . . Destroy Structure 3 | . 3 . . Lose Combat Pursuer 60 | . 60 . . Influence Decreases 486 | 20 122 267 77 Entered New Map 38 | . . 33 5 Time Decay 408 | 20 122 234 32 Lost Part 40 | . . . 40 Squads Dispatched 3 | . 3 . . Investigation 2 | . 2 . . Extermination . | . . . . Reinforcement 1 | . 1 . . Assault . | . . . . Garrison . | . . . . Intercept . | . . . . Searches Triggered . | . . . . Construction Impeded . | . . . . Haulers Reinforced . | . . . . Active Scanning Responses . | . . . . Cargo Convoy Interrupts . | . . . . Stealth | -11 -10 -10 -10 --------- Run | Yrd Mat Min Exi Distress Signals . | . . . . Communications Jammed . | . . . . Distress Signals . | . . . . Times Spotted 42 | . 13 8 21 Peak Tracking Total 8 | . 6 3 8 Tactical Retreats 1 | . 1 . . Traps | -11 -10 -10 -10 ------- Run | Yrd Mat Min Exi Traps Triggered . | . . . . Indirectly . | . . . . Trap Hack Attempts . | . . . . Triggered . | . . . . Disarmed . | . . . . Reprogrammed . | . . . . Reused . | . . . . Traps Extracted . | . . . . Installed . | . . . . Triggered . | . . . . Machines | -11 -10 -10 -10 ---------- Run | Yrd Mat Min Exi Machines Disabled 2 | . . . 2 Max in Single Turn 1 | . . . 1 Machines Repaired . | . . . . Machines Dismantled . | . . . . Machines Sabotaged . | . . . . Overloaded Fab Kills . | . . . . Hacking | -11 -10 -10 -10 --------- Run | Yrd Mat Min Exi Machines Accessed 10 | . 5 . 5 Terminals 4 | . 4 . . Fabricators . | . . . . Repair Stations . | . . . . Recycling Units 1 | . 1 . . Scanalyzers . | . . . . Garrison Access . | . . . . Total Hacks 65 | . 15 . 50 Successful 57 | . 7 . 50 Failed 8 | . 8 . . Catastrophic 1 | . 1 . . Database Lockouts . | . . . . Manual 5 | . 4 . 1 Terminals 13 | . 13 . . Fabricators . | . . . . Repair Stations . | . . . . Recycling Units 2 | . 2 . . Scanalyzers . | . . . . Garrison Access . | . . . . Terminal Hacks 55 | . 5 . 50 Record 49 | . . . 49 Prototype ID Bank 1 | . 1 . . Terminal Index 1 | . 1 . . Alert Level 1 | . 1 . . Locate Traps 1 | . 1 . . Maintenance Status 1 | . 1 . . Proto ID Catalog 1 | . . . 1 Fabricator Hacks . | . . . . Repair Station Hacks . | . . . . Recycling Unit Hacks 1 | . 1 . . Report Inventory 1 | . 1 . . Scanalyzer . | . . . . Garrison Access Hacks . | . . . . Unauthorized Hacks 1 | . 1 . . Terminals 1 | . 1 . . Botnet 1 | . 1 . . Fabricators . | . . . . Repair Stations . | . . . . Recycling Units . | . . . . Scanalyzers . | . . . . Garrison Access . | . . . . Data Cores Recovered . | . . . . Used . | . . . . Hacking Detections 5 | . 5 . . Full Trace Events . | . . . . Feedback Events . | . . . . Feedback Blocked . | . . . . Robot Schematics Acquired . | . . . . Robots Built . | . . . . Authchips . | . . . . Time . | . . . . Total Robot Build Rating . | . . . . Part Schematics Acquired . | . . . . Parts Built . | . . . . Authchips . | . . . . Time . | . . . . Total Part Build Rating . | . . . . Part Studies Acquired . | . . . . Parts Repaired . | . . . . Time . | . . . . Parts Recycled . | . . . . Recycled Matter . | . . . . Retrieved Matter . | . . . . Retrieved Components . | . . . . Parts Scanalyzed . | . . . . Part Schematics Acquired . | . . . . Parts Damaged . | . . . . Bothacking | -11 -10 -10 -10 ------------ Run | Yrd Mat Min Exi Used RIF Installer . | . . . . Robots Hacked . | . . . . Non-combat . | . . . . Combat . | . . . . Robot Hacks Applied . | . . . . Relay Couplers Released . | . . . . Fabnet Peak Effective % . | . . . . Robots Rewired . | . . . . Allies Hacked . | . . . . Hacks Repelled . | . . . . Allies | -11 -10 -10 -10 -------- Run | Yrd Mat Min Exi Total Allies 1 | . . 1 . Largest Group 1 | . . 1 . Highest-Rated Group 31 | . . 31 . Highest-Rated Ally 31 | . . 31 . Total Orders . | . . . . Ally Attacks 3 | . . 3 . Total Damage 64 | . . 64 . Kills 2 | . . 2 . Allies Corrupted . | . . . . Allies Melted . | . . . . Intel | -11 -10 -10 -10 ------- Run | Yrd Mat Min Exi Active Infowar (turns) 1811 | . 2 1346 463 Structural 1811 | . 2 1346 463 Robot Analysis Total . | . . . . Derelict Logs Recovered 1 | . . 1 . Drone Launches . | . . . . Drone Recoveries . | . . . . Exploration | -11 -10 -10 -10 ------------- Run | Yrd Mat Min Exi Turns Passed 2950 | 162 861 1428 499 Spaces Moved 1577 | 77 314 803 383 Core 12 | 10 . . 2 Treads . | . . . . Legs 886 | 67 314 505 . Wheels 679 | . . 298 381 Hover . | . . . . Flight . | . . . . Fastest Speed 50 | 50 120 100 50 Average Speed 143 | 114 170 156 99 Slowest Speed 190 | 190 190 190 115 Overloaded Moves . | . . . . Propulsion Burnouts . | . . . . Robots Hopped . | . . . . Potential Cave-ins . | . . . . Cave-ins Triggered . | . . . . Exploration Rate (%) 55 | 5 40 98 80 Regions Visited 3 Branch Regions 2 Pre-discovered Areas 3 | . . 2 1 Known Exits Taken . | . . . . Unknown Exits Taken 3 | 1 1 1 . Scrap Searched 3 | . . 3 . Spaces Dug 2 | . 2 . . Terrain Destroyed 11 | . 2 . 9 Melee . | . . . . Projectile 3 | . 2 . 1 AOE 8 | . . . 8 Terrain Rammed . | . . . . Walls Destroyed . | . . . . Machines Disabled . | . . . . Actions | -11 -10 -10 -10 --------- Run | Yrd Mat Min Exi Total 2088 | 125 590 932 441 Wait 353 | 26 225 86 16 Move 1574 | 76 313 802 383 Hop . | . . . . Pick Up 22 | 6 10 5 1 Fast Attach 8 | 6 2 . . Attach 4 | . . 1 3 Detach 2 | . 1 . 1 Swap 18 | . 7 9 2 Drop 17 | . 8 8 1 Fire 90 | 11 24 21 34 Melee . | . . . . Ram . | . . . . Kick . | . . . . Crush . | . . . . Escape Stasis . | . . . . Rewire . | . . . . Trap . | . . . . Miscellaneous . | . . . . Route ------- -11/Scrapyard -10/Materials (discovered 3 exits: *Mat / [*Min] / *Sub) -10/Mines (discovered 4 exits: *Mat x2 / *Exi / *Sub) -10/Exiles (discovered 1 exit: [*Min]) History --------- Turn | Location | Event 6 | -11/Scrapyard | Discovered new exit (range 15) 163 | -11/Scrapyard | Entered Materials 316 | -10/Materials | Build established: Mutant 738 | -10/Materials | Discovered new exit (range 11) 763 | -10/Materials | Discovered new exit (range 6) 863 | -10/Materials | Derelicts attacked the area 878 | -10/Materials | Discovered new exit (range 16) 1024 | -10/Materials | Entered Mines 1175 | -10/Mines | Found DCF Scrap (13 items) 1195 | -10/Mines | Discovered new exit (range 7) 1258 | -10/Mines | Discovered new exit (range 5) 1281 | -10/Mines | Identified exit to Subcaves 1343 | -10/Mines | Identified exit to Materials 1694 | -10/Mines | Found a Scrap Suit stashed away for nefarious purposes 1700 | -10/Mines | Found Scrap Suit 1877 | -10/Mines | Discovered exit to Materials (range 10) 2031 | -10/Mines | Escorted by a lone wolf Derelict 2175 | -10/Mines | Learned location of Storage (-9) 2295 | -10/Mines | Deemed a non-threat by the Exiles lab entrance 2295 | -10/Mines | Discovered new exit (range 5) 2452 | -10/Mines | Entered Exiles 2466 | -10/Exiles | Discovered new exit (range 15) 2488 | -10/Exiles | Met 8R-AWN 2505 | -10/Exiles | Met EX-HEX 2543 | -10/Exiles | Met EX-DEC 2555 | -10/Exiles | Met EX-BIN 2576 | -10/Exiles | Aligned with FarCom system 2577 | -10/Exiles | Given EX-Vault access code 2626 | -10/Exiles | Opened EX-Vault 2634 | -10/Exiles | Found Firepult 2656 | -10/Exiles | Warned to stay clear of 0b10 Research branches 2668 | -10/Exiles | Exiles lab attacked by MAIN.C 2688 | -10/Exiles | Learned location of Zion (-6) 2914 | -10/Exiles | Lost 3 parts (2n1w) 2917 | -10/Exiles | Attacked by the Exiles 2932 | -10/Exiles | Core integrity fell below 50% 2947 | -10/Exiles | Core integrity fell below 20% 2951 | -10/Exiles | Released all parts (3) 2952 | -10/Exiles | Core destroyed Last Messages --------------- 02942_ Overheating: Matter decay (-15). 02943_ Overheating: Lgt. Armor Plating damaged (-9). 02943_ Overheating: Beam Cannon damaged (-56). 02943_ G-34 Mercenary destroyed. 02944_ Overheating: Core damaged (-25). 02945_ Overheating: Core damaged (-27). 02946_ Overheating: Lrg. Storage Unit damaged (-25). 02947_ Overheating: Core damaged (-35). 02948_ Penetrated by Slug. 02948_ Lgt. Armor Plating destroyed. 02949_ Overheating: Lrg. Storage Unit damaged (-29). 02949_ Overheating: Beam Cannon damaged (-13). 02949_ Overheating: Broken Lgt. Nuclear Core damaged (-2). 02951_ Overheating: Lrg. Storage Unit damaged (-6). 02951_ Overheating: Beam Cannon damaged (-3). 02951_ Released Lrg. Storage Unit. 02951_ Released Broken Lgt. Nuclear Core. 02951_ Released Beam Cannon. [Achievement: Live, Flee, And Rebuild] 02952_ Overheating: Core damaged (-35). Map ----- +----------------------------------------------------+ | ??????????#### | | ???????????####" | | ????????????###""" """""" | | ????????????###" ######""" | | ????????????##"" ""###########""" | | ???????????###""" """####??#######""" | | ???????????##""" """####???????###""" | | ???????????##""" ""########?#####"" | | ???????????##"" ##############"""" | | ???????????##""" ## ####""" | | ???????????##"" """" | | ???????????###"" [ | | ???????????###"""" = = | | ????????????### [ **= | | ????????????###" ![=%g[ "" | | ?????????????##"""" %%[ =gh!## ##""" " " | | ?????????????##"" ! **[/*#### ######""" | | ?????????????##" !%* % g ####? ########"" | | ?????????????##""" =[= ##??? ##??###### | | ?????????????### =%!b ##???? "????#### | | ?????????????###"" ####????? ???????? | | ??????????????###""" ####??????? ???????? | | ??????????????####"" ]!! ;;##????????!"##????? | | ???????????????##### |*!! ###?????????####????? | | ????????????????######## !* ###??????????####????? | | ??????????????????#######@ ###??????????????????? | | ??????????????????????### ##???????????????????? | | ???????????????????????## ##???????????????????? | | ??????????????#####????## ##???????????????????? | | ????????????#######????## ##???????????????????? | | ?????""""???##"""""????## ##???????????????????? | | ????""""""??##"""""""#### ##???????????????????? | | """""""" "??##" """"#### ##???????????????????? | | ""#""" """??##"" """#### ##???????????????????? | | ""#"" ""####"" ""#### #########????????????? | | ""###"""########"""###### #########????????????? | | """"" """""""" """""" """""""#"????????????? | | """" """"""" "#"" ""????????? | | " ""????????? | | " " "????????? | | " ""?????????? | | "" #"" "?????????? | | """ " """"" " """" """""#"????????????? | | #####"""###""###"""########"""#######????????????? | | ###"" ""#""#"" ""####"" ""#####????????????? | | ?##""" ""#""#""" ""####"" """##???????????????? | | ?##" """"""""#" " "####"""""""##???????????????? | | ?##"""""""??"#"""""""####"" """"##???????????????? | | ???"""""""????"""""""##??""""""??????????????????? | | ???????????????########??#####???????????????????? | +----------------------------------------------------+ Best States ------------- Heat Dissipation 25 Energy Generation 14 Energy Capacity 250 Matter Stores 300 Matter Capacity 300 Sight Range 16 Terrain Scan Density 10 Armor Coverage 150 Evasion (%) 55 Item Schematics ----------------- None Robot Schematics ------------------ None Fabricated ------------ Nothing Repaired ---------- Nothing Studied --------- None Alien Tech Used ----------------- None Achievements -------------- Live, Flee, And Rebuild Sixth Sense Well Done Challenges ------------ None Game ------ Seed NeutronIonicCartridge Manual? 0 Play Time 00:41:13 Cumulative 99.2 hours Start 2025.11.15 @ 16:46:16 End 2025.11.15 @ 17:35:47 Sessions 1 Manual Loads 0 Difficulty Rogue Special Mode None Game No. 51 Rogue 51 Adventurer 0 Explorer 0 Win Type - Total 4 Types 4/0/0/0/0/0/0/0/0/0 Lore% 41 Gallery% 39 Achievement% 34 Wizard Run 0 Options --------- Layout 0 ASCII 0 Keyboard 0 Movement Numpad Keybinds 0 Fullscreen 2 Font 36/Terminus Map View 76x50 Zoom Use 0% Tactical HUD 1 Map Filters NONE Filters NONE Steam 1 RUN: f9d13f47-e804-46f9-b395-bb784781b502